[Event "Titled Tuesday Blitz July 6 2021"]
[White "Grebeniuk, Semen"]
[Black "Ezat, Mohamed"]
[WhiteFideId "14117509"]
[BlackFideId "10600906"]
[WhiteElo "2232"]
[BlackElo "2414"]
[Result "1-0"]
[Round "08"]
[TimeControl "180+1"]
[Date "2021.07.06"]
[WhiteClock "0:00:14"]
[BlackClock "0:00:13"]

1. d4 {[%clk 0:03:00]}  Nf6 {[%clk 0:02:56]} 2. Nf3 {[%clk 0:03:01]}  g6 {[%clk 0:02:55]} 3. Bg5 {[%clk 0:03:01]}  Ne4 {[%clk 0:02:52]} 4. Bf4 {[%clk 0:03:01]}  Bg7 {[%clk 0:02:52]} 5. c3 {[%clk 0:03:01]}  O-O {[%clk 0:02:51]} 6. Nbd2 {[%clk 0:03:02]}  Nxd2 {[%clk 0:02:51]} 7. Qxd2 {[%clk 0:03:03]}  d6 {[%clk 0:02:51]} 8. e4 {[%clk 0:03:03]}  e5 {[%clk 0:02:45]} 9. dxe5 {[%clk 0:03:02]}  dxe5 {[%clk 0:02:46]} 10. Qxd8 {[%clk 0:02:50]}  Rxd8 {[%clk 0:02:46]} 11. Be3 {[%clk 0:02:46]}  Bg4 {[%clk 0:02:41]} 12. Nd2 {[%clk 0:02:44]}  c6 {[%clk 0:02:39]} 13. Bc4 {[%clk 0:02:41]}  Na6 {[%clk 0:02:17]} 14. f3 {[%clk 0:02:29]}  Bd7 {[%clk 0:02:12]} 15. Bxa6 {[%clk 0:02:28]}  bxa6 {[%clk 0:02:11]} 16. O-O-O {[%clk 0:02:29]}  Be6 {[%clk 0:02:09]} 17. Kc2 {[%clk 0:02:21]}  a5 {[%clk 0:02:07]} 18. a4 {[%clk 0:01:58]}  Rd7 {[%clk 0:01:51]} 19. Nb3 {[%clk 0:01:48]}  Bxb3+ {[%clk 0:01:49]} 20. Kxb3 {[%clk 0:01:49]}  Rb7+ {[%clk 0:01:49]} 21. Kc2 {[%clk 0:01:48]}  Rab8 {[%clk 0:01:48]} 22. Rb1 {[%clk 0:01:42]}  Bf8 {[%clk 0:01:47]} 23. Rhd1 {[%clk 0:01:40]}  f6 {[%clk 0:01:46]} 24. b3 {[%clk 0:01:26]}  Kf7 {[%clk 0:01:46]} 25. c4 {[%clk 0:01:24]}  Ke6 {[%clk 0:01:42]} 26. Rd3 {[%clk 0:01:25]}  h5 {[%clk 0:01:14]} 27. Rbd1 {[%clk 0:01:24]}  Be7 {[%clk 0:01:12]} 28. Bd2 {[%clk 0:01:22]}  Bc5 {[%clk 0:01:02]} 29. Bxa5 {[%clk 0:01:08]}  Bd4 {[%clk 0:01:01]} 30. b4 {[%clk 0:01:02]}  a6 {[%clk 0:00:59]} 31. c5 {[%clk 0:01:00]}  Rd7 {[%clk 0:00:48]} 32. Bb6 {[%clk 0:00:58]}  f5 {[%clk 0:00:48]} 33. Re1 {[%clk 0:00:54]}  fxe4 {[%clk 0:00:48]} 34. Rxe4 {[%clk 0:00:54]}  Kd5 {[%clk 0:00:48]} 35. Rd1 {[%clk 0:00:36]}  Kc4 {[%clk 0:00:48]} 36. Rxe5 {[%clk 0:00:28]}  Bxe5 {[%clk 0:00:43]} 37. Rxd7 {[%clk 0:00:27]}  Kxb4 {[%clk 0:00:44]} 38. a5 {[%clk 0:00:18]}  Bxh2 {[%clk 0:00:42]} 39. Rd4+ {[%clk 0:00:17]}  Ka3 {[%clk 0:00:38]} 40. Re4 {[%clk 0:00:15]}  Rc8 {[%clk 0:00:25]} 41. Kc3 {[%clk 0:00:14]}  g5 {[%clk 0:00:19]} 42. Kc4 {[%clk 0:00:14]}  Bf4 {[%clk 0:00:18]} 43. Re7 {[%clk 0:00:10]}  Ka4 {[%clk 0:00:17]} 44. Ra7 {[%clk 0:00:10]}  h4 {[%clk 0:00:15]} 45. Rxa6 {[%clk 0:00:10]}  Re8 {[%clk 0:00:15]} 46. Ra7 {[%clk 0:00:10]}  Re2 {[%clk 0:00:15]} 47. a6 {[%clk 0:00:09]}  Rxg2 {[%clk 0:00:11]} 48. Rh7 {[%clk 0:00:09]}  Rc2+ {[%clk 0:00:11]} 49. Kd3 {[%clk 0:00:09]}  Kb5 {[%clk 0:00:12]} 50. Kxc2 {[%clk 0:00:09]}  Kxa6 {[%clk 0:00:11]} 51. Kd3 {[%clk 0:00:09]}  Kb5 {[%clk 0:00:11]} 52. Ke4 {[%clk 0:00:10]}  Kc4 {[%clk 0:00:11]} 53. Kf5 {[%clk 0:00:10]}  Kd3 {[%clk 0:00:11]} 54. Kg4 {[%clk 0:00:11]}  Ke3 {[%clk 0:00:11]} 55. Bd8 {[%clk 0:00:11]}  Kf2 {[%clk 0:00:10]} 56. Bxg5 {[%clk 0:00:11]}  Bxg5 {[%clk 0:00:11]} 57. Kxg5 {[%clk 0:00:12]}  h3 {[%clk 0:00:12]} 58. Rxh3 {[%clk 0:00:12]}  Kg2 {[%clk 0:00:12]} 59. Rh6 {[%clk 0:00:13]}  Kxf3 {[%clk 0:00:12]} 60. Rxc6 {[%clk 0:00:13]}  Ke4 {[%clk 0:00:13]} 61. Rd6 {[%clk 0:00:14]} 1-0


[Site "https://www.chess.com"]

[Event "Titled Tuesday Blitz July 6 2021"]
[White "Janaszak, Dawid"]
[Black "Nguyen, Quoc Hy"]
[WhiteFideId "1119206"]
[BlackFideId "12410853"]
[WhiteElo "2332"]
[BlackElo "1975"]
[Result "1/2-1/2"]
[Round "08"]
[TimeControl "180+1"]
[Date "2021.07.06"]
[WhiteClock "0:00:04"]
[BlackClock "0:00:09"]

1. d4 {[%clk 0:03:00]}  d5 {[%clk 0:02:55]} 2. Nf3 {[%clk 0:03:00]}  Nf6 {[%clk 0:02:55]} 3. Bf4 {[%clk 0:03:00]}  Bf5 {[%clk 0:02:54]} 4. c4 {[%clk 0:02:57]}  e6 {[%clk 0:02:52]} 5. Nc3 {[%clk 0:02:58]}  c6 {[%clk 0:02:52]} 6. Qb3 {[%clk 0:02:55]}  Qb6 {[%clk 0:02:39]} 7. c5 {[%clk 0:02:55]}  Qxb3 {[%clk 0:02:39]} 8. axb3 {[%clk 0:02:56]}  Na6 {[%clk 0:02:40]} 9. Ra4 {[%clk 0:02:33]}  Bc2 {[%clk 0:02:28]} 10. Nd2 {[%clk 0:02:32]}  Nh5 {[%clk 0:02:18]} 11. g3 {[%clk 0:02:15]}  Nxf4 {[%clk 0:01:54]} 12. gxf4 {[%clk 0:02:16]}  Nc7 {[%clk 0:01:44]} 13. e3 {[%clk 0:02:15]}  Be7 {[%clk 0:01:42]} 14. Rg1 {[%clk 0:02:12]}  O-O {[%clk 0:01:42]} 15. Be2 {[%clk 0:02:08]}  b6 {[%clk 0:01:41]} 16. cxb6 {[%clk 0:01:58]}  axb6 {[%clk 0:01:42]} 17. Bd1 {[%clk 0:01:58]}  Bd3 {[%clk 0:01:31]} 18. Be2 {[%clk 0:01:55]}  Bc2 {[%clk 0:01:32]} 19. Bd1 {[%clk 0:01:56]}  Bg6 {[%clk 0:01:30]} 20. Nf3 {[%clk 0:01:24]}  f6 {[%clk 0:00:41]} 21. Kd2 {[%clk 0:01:24]}  c5 {[%clk 0:00:37]} 22. Bc2 {[%clk 0:01:17]}  Bh5 {[%clk 0:00:31]} 23. Rg3 {[%clk 0:01:07]}  b5 {[%clk 0:00:28]} 24. Rxa8 {[%clk 0:01:05]}  Rxa8 {[%clk 0:00:29]} 25. dxc5 {[%clk 0:01:03]}  Bxc5 {[%clk 0:00:28]} 26. Rh3 {[%clk 0:00:54]}  Bxf3 {[%clk 0:00:18]} 27. Rxf3 {[%clk 0:00:55]}  d4 {[%clk 0:00:17]} 28. Ne4 {[%clk 0:00:53]}  dxe3+ {[%clk 0:00:17]} 29. fxe3 {[%clk 0:00:53]}  Bb4+ {[%clk 0:00:17]} 30. Kc1 {[%clk 0:00:50]}  Nd5 {[%clk 0:00:16]} 31. Bd1 {[%clk 0:00:46]}  f5 {[%clk 0:00:14]} 32. Ng5 {[%clk 0:00:46]}  Re8 {[%clk 0:00:11]} 33. e4 {[%clk 0:00:44]}  Nf6 {[%clk 0:00:11]} 34. e5 {[%clk 0:00:44]}  Nd5 {[%clk 0:00:11]} 35. Nh3 {[%clk 0:00:36]}  h6 {[%clk 0:00:11]} 36. Rd3 {[%clk 0:00:32]}  Rc8+ {[%clk 0:00:10]} 37. Kb1 {[%clk 0:00:31]}  Bc5 {[%clk 0:00:10]} 38. Bf3 {[%clk 0:00:31]}  Nb4 {[%clk 0:00:06]} 39. Rc3 {[%clk 0:00:29]}  Rc7 {[%clk 0:00:05]} 40. Be2 {[%clk 0:00:27]}  Nd5 {[%clk 0:00:04]} 41. Rc1 {[%clk 0:00:27]}  b4 {[%clk 0:00:04]} 42. Bc4 {[%clk 0:00:26]}  Be3 {[%clk 0:00:04]} 43. Rd1 {[%clk 0:00:20]}  Nxf4 {[%clk 0:00:03]} 44. Nxf4 {[%clk 0:00:19]}  Bxf4 {[%clk 0:00:04]} 45. Bxe6+ {[%clk 0:00:20]}  Kf8 {[%clk 0:00:04]} 46. Bxf5 {[%clk 0:00:18]}  Bxe5 {[%clk 0:00:05]} 47. Bd3 {[%clk 0:00:17]}  Bxh2 {[%clk 0:00:05]} 48. Bc4 {[%clk 0:00:16]}  Be5 {[%clk 0:00:04]} 49. Rd8+ {[%clk 0:00:14]}  Ke7 {[%clk 0:00:05]} 50. Rd5 {[%clk 0:00:15]}  Bf6 {[%clk 0:00:04]} 51. Rb5 {[%clk 0:00:15]}  g5 {[%clk 0:00:04]} 52. Rxb4 {[%clk 0:00:15]}  Be5 {[%clk 0:00:04]} 53. Rb6 {[%clk 0:00:15]}  Bd6 {[%clk 0:00:04]} 54. Rb5 {[%clk 0:00:13]}  Kf6 {[%clk 0:00:03]} 55. Rb6 {[%clk 0:00:13]}  Ke7 {[%clk 0:00:03]} 56. Rb5 {[%clk 0:00:13]}  Rc5 {[%clk 0:00:04]} 57. Rb7+ {[%clk 0:00:13]}  Kf6 {[%clk 0:00:04]} 58. Rh7 {[%clk 0:00:12]}  Bf8 {[%clk 0:00:04]} 59. Rf7+ {[%clk 0:00:11]}  Kg6 {[%clk 0:00:03]} 60. Rxf8 {[%clk 0:00:12]}  g4 {[%clk 0:00:04]} 61. Rg8+ {[%clk 0:00:11]}  Kh5 {[%clk 0:00:04]} 62. Be2 {[%clk 0:00:11]}  Rg5 {[%clk 0:00:03]} 63. Rxg5+ {[%clk 0:00:07]}  Kxg5 {[%clk 0:00:04]} 64. b4 {[%clk 0:00:07]}  h5 {[%clk 0:00:04]} 65. b5 {[%clk 0:00:08]}  g3 {[%clk 0:00:05]} 66. Bf3 {[%clk 0:00:07]}  h4 {[%clk 0:00:05]} 67. b6 {[%clk 0:00:07]}  h3 {[%clk 0:00:04]} 68. b7 {[%clk 0:00:08]}  g2 {[%clk 0:00:05]} 69. b8=Q {[%clk 0:00:07]}  g1=Q+ {[%clk 0:00:05]} 70. Ka2 {[%clk 0:00:07]}  h2 {[%clk 0:00:06]} 71. Qg8+ {[%clk 0:00:06]}  Kf4 {[%clk 0:00:06]} 72. Qf7+ {[%clk 0:00:06]}  Ke3 {[%clk 0:00:07]} 73. Qd5 {[%clk 0:00:06]}  Qf2 {[%clk 0:00:06]} 74. Qc5+ {[%clk 0:00:04]}  Kxf3 {[%clk 0:00:06]} 75. Qf5+ {[%clk 0:00:03]}  Kg2 {[%clk 0:00:06]} 76. Qg4+ {[%clk 0:00:03]}  Qg3 {[%clk 0:00:06]} 77. Qe2+ {[%clk 0:00:03]}  Kh3 {[%clk 0:00:06]} 78. Qh5+ {[%clk 0:00:03]}  Kg2 {[%clk 0:00:06]} 79. Qe2+ {[%clk 0:00:03]}  Qf2 {[%clk 0:00:07]} 80. Qg4+ {[%clk 0:00:04]}  Kf1 {[%clk 0:00:07]} 81. Qd1+ {[%clk 0:00:04]}  Qe1 {[%clk 0:00:08]} 82. Qf3+ {[%clk 0:00:04]}  Kg1 {[%clk 0:00:08]} 83. Qg4+ {[%clk 0:00:04]}  Kf1 {[%clk 0:00:08]} 84. Qf3+ {[%clk 0:00:04]}  Qf2 {[%clk 0:00:09]} 85. Qd1+ {[%clk 0:00:04]}  Kg2 {[%clk 0:00:09]} 86. Qg4+ {[%clk 0:00:04]} 1/2-1/2


[Site "https://www.chess.com"]

[Event "Titled Tuesday Blitz July 6 2021"]
[White "Kalajzic, Ivan"]
[Black "Nguyen Hong Nhung"]
[WhiteFideId "14506378"]
[BlackFideId "12412201"]
[WhiteElo "2163"]
[BlackElo "1661"]
[Result "1/2-1/2"]
[Round "08"]
[TimeControl "180+1"]
[Date "2021.07.06"]
[WhiteClock "0:00:44"]
[BlackClock "0:00:47"]

1. d4 {[%clk 0:03:00]}  Nf6 {[%clk 0:02:58]} 2. Nc3 {[%clk 0:03:01]}  c5 {[%clk 0:02:58]} 3. d5 {[%clk 0:03:00]}  d6 {[%clk 0:02:57]} 4. e4 {[%clk 0:03:01]}  g6 {[%clk 0:02:57]} 5. Be2 {[%clk 0:03:00]}  Bg7 {[%clk 0:02:58]} 6. Nf3 {[%clk 0:03:00]}  O-O {[%clk 0:02:58]} 7. O-O {[%clk 0:03:00]}  a6 {[%clk 0:02:57]} 8. a4 {[%clk 0:03:00]}  e6 {[%clk 0:02:56]} 9. Nd2 {[%clk 0:02:57]}  exd5 {[%clk 0:02:39]} 10. exd5 {[%clk 0:02:57]}  Re8 {[%clk 0:02:40]} 11. Nc4 {[%clk 0:02:54]}  Ne4 {[%clk 0:02:34]} 12. Nxe4 {[%clk 0:02:44]}  Rxe4 {[%clk 0:02:34]} 13. c3 {[%clk 0:02:43]}  Re8 {[%clk 0:01:50]} 14. Bf3 {[%clk 0:02:40]}  Bf5 {[%clk 0:01:50]} 15. Bf4 {[%clk 0:02:37]}  Bf8 {[%clk 0:01:48]} 16. a5 {[%clk 0:02:33]}  Be4 {[%clk 0:01:38]} 17. Re1 {[%clk 0:02:26]}  Bxf3 {[%clk 0:01:36]} 18. Qxf3 {[%clk 0:02:27]}  Nd7 {[%clk 0:01:29]} 19. Rxe8 {[%clk 0:02:09]}  Qxe8 {[%clk 0:01:30]} 20. Bxd6 {[%clk 0:02:07]}  Rd8 {[%clk 0:01:27]} 21. Bxf8 {[%clk 0:02:02]}  Qxf8 {[%clk 0:01:28]} 22. Rd1 {[%clk 0:01:55]}  Qe7 {[%clk 0:01:21]} 23. Qe3 {[%clk 0:01:50]}  Qh4 {[%clk 0:01:18]} 24. b3 {[%clk 0:01:45]}  Nf6 {[%clk 0:01:14]} 25. g3 {[%clk 0:01:38]}  Qg4 {[%clk 0:01:09]} 26. f3 {[%clk 0:01:36]}  Qf5 {[%clk 0:01:01]} 27. Qd3 {[%clk 0:01:17]}  Rxd5 {[%clk 0:00:59]} 28. Qf1 {[%clk 0:01:10]}  Qc2 {[%clk 0:00:54]} 29. Rxd5 {[%clk 0:01:04]}  Nxd5 {[%clk 0:00:54]} 30. Qe1 {[%clk 0:00:56]}  Nxc3 {[%clk 0:00:46]} 31. Qe8+ {[%clk 0:00:54]}  Kg7 {[%clk 0:00:47]} 32. Qe5+ {[%clk 0:00:54]}  Kg8 {[%clk 0:00:47]} 33. Qe8+ {[%clk 0:00:53]}  Kg7 {[%clk 0:00:47]} 34. Qe5+ {[%clk 0:00:54]}  Kh6 {[%clk 0:00:47]} 35. Qf4+ {[%clk 0:00:48]}  Kg7 {[%clk 0:00:47]} 36. Qe5+ {[%clk 0:00:44]} 1/2-1/2


[Site "https://www.chess.com"]

[Event "Titled Tuesday Blitz July 6 2021"]
[White "Kiltti, Jyrki"]
[Black "Leenhouts, Koen"]
[WhiteFideId "501204"]
[BlackFideId "1008439"]
[WhiteElo "2245"]
[BlackElo "2409"]
[Result "1-0"]
[Round "08"]
[TimeControl "180+1"]
[Date "2021.07.06"]
[WhiteClock "0:01:26"]
[BlackClock "0:00:19"]

1. Nc3 {[%clk 0:03:00]}  d5 {[%clk 0:02:56]} 2. e4 {[%clk 0:03:00]}  d4 {[%clk 0:02:56]} 3. Nce2 {[%clk 0:02:59]}  e5 {[%clk 0:02:57]} 4. Nf3 {[%clk 0:02:59]}  f6 {[%clk 0:02:56]} 5. Ng3 {[%clk 0:02:58]}  Be6 {[%clk 0:02:57]} 6. b3 {[%clk 0:02:58]}  Nc6 {[%clk 0:02:45]} 7. Bc4 {[%clk 0:02:57]}  Bxc4 {[%clk 0:02:45]} 8. bxc4 {[%clk 0:02:56]}  d3 {[%clk 0:02:46]} 9. cxd3 {[%clk 0:02:50]}  Qxd3 {[%clk 0:02:43]} 10. Qe2 {[%clk 0:02:49]}  O-O-O {[%clk 0:02:42]} 11. Qxd3 {[%clk 0:02:42]}  Rxd3 {[%clk 0:02:42]} 12. Ke2 {[%clk 0:02:42]}  Rd7 {[%clk 0:02:38]} 13. d3 {[%clk 0:02:40]}  Bc5 {[%clk 0:02:29]} 14. Be3 {[%clk 0:02:39]}  Bxe3 {[%clk 0:02:29]} 15. fxe3 {[%clk 0:02:40]}  Nge7 {[%clk 0:02:27]} 16. Rab1 {[%clk 0:02:39]}  Rhd8 {[%clk 0:02:26]} 17. Rhd1 {[%clk 0:02:36]}  b6 {[%clk 0:02:18]} 18. Nf5 {[%clk 0:02:30]}  Nxf5 {[%clk 0:02:14]} 19. exf5 {[%clk 0:02:31]}  a5 {[%clk 0:02:01]} 20. a3 {[%clk 0:02:28]}  Kb7 {[%clk 0:01:52]} 21. c5 {[%clk 0:02:22]}  Rd5 {[%clk 0:01:52]} 22. cxb6 {[%clk 0:02:19]}  cxb6 {[%clk 0:01:53]} 23. e4 {[%clk 0:02:07]}  Rc5 {[%clk 0:01:44]} 24. Rdc1 {[%clk 0:02:07]}  Rxc1 {[%clk 0:01:41]} 25. Rxc1 {[%clk 0:02:08]}  Nd4+ {[%clk 0:01:40]} 26. Nxd4 {[%clk 0:02:07]}  Rxd4 {[%clk 0:01:41]} 27. Ke3 {[%clk 0:02:05]}  Rd6 {[%clk 0:01:34]} 28. Rb1 {[%clk 0:01:59]}  Rc6 {[%clk 0:01:32]} 29. Kd2 {[%clk 0:01:57]}  Rc5 {[%clk 0:01:32]} 30. g4 {[%clk 0:01:53]}  Kc6 {[%clk 0:01:30]} 31. h4 {[%clk 0:01:53]}  h6 {[%clk 0:01:23]} 32. g5 {[%clk 0:01:51]}  hxg5 {[%clk 0:01:21]} 33. hxg5 {[%clk 0:01:52]}  b5 {[%clk 0:01:02]} 34. gxf6 {[%clk 0:01:45]}  gxf6 {[%clk 0:01:03]} 35. Rg1 {[%clk 0:01:44]}  b4 {[%clk 0:01:02]} 36. axb4 {[%clk 0:01:43]}  axb4 {[%clk 0:01:03]} 37. Rg6 {[%clk 0:01:43]}  b3 {[%clk 0:01:02]} 38. Rxf6+ {[%clk 0:01:43]}  Kb5 {[%clk 0:01:02]} 39. Rf8 {[%clk 0:01:43]}  Kb4 {[%clk 0:00:59]} 40. Rb8+ {[%clk 0:01:42]}  Ka3 {[%clk 0:00:58]} 41. f6 {[%clk 0:01:40]}  Rc7 {[%clk 0:00:57]} 42. d4 {[%clk 0:01:38]}  exd4 {[%clk 0:00:37]} 43. e5 {[%clk 0:01:36]}  Rf7 {[%clk 0:00:25]} 44. Kd3 {[%clk 0:01:34]}  b2 {[%clk 0:00:25]} 45. Kxd4 {[%clk 0:01:34]}  Ka2 {[%clk 0:00:23]} 46. Kd5 {[%clk 0:01:32]}  Rd7+ {[%clk 0:00:19]} 47. Ke6 {[%clk 0:01:30]}  Rd8 {[%clk 0:00:19]} 48. Rxd8 {[%clk 0:01:26]} 1-0


[Site "https://www.chess.com"]

[Event "Titled Tuesday Blitz July 6 2021"]
[White "Kobo, Ori"]
[Black "Shevelev, Dmitry"]
[WhiteFideId "2812320"]
[BlackFideId "24233463"]
[WhiteElo "2431"]
[BlackElo "2484"]
[Result "1-0"]
[Round "08"]
[TimeControl "180+1"]
[Date "2021.07.06"]
[WhiteClock "0:00:05"]
[BlackClock "0:00:02"]

1. e4 {[%clk 0:03:00]}  g6 {[%clk 0:02:57]} 2. d4 {[%clk 0:02:59]}  Bg7 {[%clk 0:02:57]} 3. Nc3 {[%clk 0:03:00]}  c6 {[%clk 0:02:58]} 4. Nf3 {[%clk 0:02:56]}  d5 {[%clk 0:02:58]} 5. Bf4 {[%clk 0:02:56]}  dxe4 {[%clk 0:02:58]} 6. Nxe4 {[%clk 0:02:56]}  Nf6 {[%clk 0:02:58]} 7. Nxf6+ {[%clk 0:02:56]}  exf6 {[%clk 0:02:59]} 8. Qd2 {[%clk 0:02:54]}  O-O {[%clk 0:03:00]} 9. O-O-O {[%clk 0:02:54]}  a5 {[%clk 0:02:55]} 10. h4 {[%clk 0:02:44]}  h5 {[%clk 0:02:54]} 11. Kb1 {[%clk 0:02:19]}  Be6 {[%clk 0:02:54]} 12. c4 {[%clk 0:02:15]}  Nd7 {[%clk 0:02:35]} 13. Bd3 {[%clk 0:02:11]}  Nb6 {[%clk 0:02:31]} 14. Qc2 {[%clk 0:02:00]}  a4 {[%clk 0:02:19]} 15. Rhe1 {[%clk 0:01:56]}  Re8 {[%clk 0:02:20]} 16. Be3 {[%clk 0:01:41]}  Bg4 {[%clk 0:02:08]} 17. Rc1 {[%clk 0:01:35]}  Nd7 {[%clk 0:01:59]} 18. Nd2 {[%clk 0:01:29]}  Be6 {[%clk 0:01:46]} 19. Ne4 {[%clk 0:01:26]}  a3 {[%clk 0:01:18]} 20. b3 {[%clk 0:01:25]}  Nb8 {[%clk 0:01:17]} 21. Nc5 {[%clk 0:01:18]}  Na6 {[%clk 0:01:07]} 22. Nxa6 {[%clk 0:00:40]}  bxa6 {[%clk 0:01:04]} 23. Be4 {[%clk 0:00:17]}  Qd7 {[%clk 0:00:51]} 24. Rcd1 {[%clk 0:00:11]}  f5 {[%clk 0:00:45]} 25. Bf3 {[%clk 0:00:12]}  f4 {[%clk 0:00:28]} 26. Bxf4 {[%clk 0:00:07]}  Bf5 {[%clk 0:00:28]} 27. Be4 {[%clk 0:00:07]}  Rxe4 {[%clk 0:00:28]} 28. Rxe4 {[%clk 0:00:08]}  Re8 {[%clk 0:00:24]} 29. f3 {[%clk 0:00:08]}  Rd8 {[%clk 0:00:24]} 30. d5 {[%clk 0:00:06]}  cxd5 {[%clk 0:00:20]} 31. Rxd5 {[%clk 0:00:07]}  Qc8 {[%clk 0:00:19]} 32. Qd3 {[%clk 0:00:05]}  Rf8 {[%clk 0:00:14]} 33. Rxf5 {[%clk 0:00:03]}  Qxf5 {[%clk 0:00:13]} 34. Be3 {[%clk 0:00:03]}  Qf6 {[%clk 0:00:13]} 35. Bd4 {[%clk 0:00:04]}  Qf5 {[%clk 0:00:12]} 36. Bxg7 {[%clk 0:00:04]}  Kxg7 {[%clk 0:00:13]} 37. Qd4+ {[%clk 0:00:05]}  Kg8 {[%clk 0:00:13]} 38. Kc2 {[%clk 0:00:05]}  a5 {[%clk 0:00:12]} 39. Kc3 {[%clk 0:00:05]}  a4 {[%clk 0:00:13]} 40. b4 {[%clk 0:00:05]}  Qc8 {[%clk 0:00:08]} 41. b5 {[%clk 0:00:05]}  Rd8 {[%clk 0:00:08]} 42. Qe3 {[%clk 0:00:04]}  Qd7 {[%clk 0:00:08]} 43. Kb4 {[%clk 0:00:04]}  Qd6+ {[%clk 0:00:08]} 44. c5 {[%clk 0:00:03]}  Qd1 {[%clk 0:00:07]} 45. c6 {[%clk 0:00:03]}  Qb1+ {[%clk 0:00:06]} 46. Ka5 {[%clk 0:00:03]}  Qxa2 {[%clk 0:00:06]} 47. Re8+ {[%clk 0:00:03]}  Rxe8 {[%clk 0:00:05]} 48. Qxe8+ {[%clk 0:00:04]}  Kg7 {[%clk 0:00:05]} 49. Qe5+ {[%clk 0:00:04]}  Kh7 {[%clk 0:00:05]} 50. c7 {[%clk 0:00:04]}  Qc2 {[%clk 0:00:04]} 51. b6 {[%clk 0:00:04]}  a2 {[%clk 0:00:04]} 52. b7 {[%clk 0:00:05]}  Qb2 {[%clk 0:00:01]} 53. Qxb2 {[%clk 0:00:04]}  a1=Q {[%clk 0:00:01]} 54. Qxa1 {[%clk 0:00:05]}  a3 {[%clk 0:00:02]} 55. Qxa3 {[%clk 0:00:05]} 1-0


[Site "https://www.chess.com"]

[Event "Titled Tuesday Blitz July 6 2021"]
[White "Kotepalli, Sai Nirupama"]
[Black "Gedajlovic, Max"]
[WhiteFideId "5039444"]
[BlackFideId "2616840"]
[WhiteElo "2432"]
[BlackElo "2137"]
[Result "1-0"]
[Round "08"]
[TimeControl "180+1"]
[Date "2021.07.06"]
[WhiteClock "0:00:09"]
[BlackClock "0:00:13"]

1. e4 {[%clk 0:03:00]}  e6 {[%clk 0:02:59]} 2. d3 {[%clk 0:02:45]}  d5 {[%clk 0:02:57]} 3. Nd2 {[%clk 0:02:44]}  c5 {[%clk 0:02:57]} 4. Ngf3 {[%clk 0:02:42]}  Nc6 {[%clk 0:02:57]} 5. g3 {[%clk 0:02:42]}  Bd6 {[%clk 0:02:57]} 6. Bg2 {[%clk 0:02:42]}  Nge7 {[%clk 0:02:56]} 7. O-O {[%clk 0:02:42]}  O-O {[%clk 0:02:49]} 8. Qe2 {[%clk 0:02:41]}  f6 {[%clk 0:02:45]} 9. c3 {[%clk 0:02:38]}  b6 {[%clk 0:02:44]} 10. exd5 {[%clk 0:02:35]}  exd5 {[%clk 0:02:37]} 11. c4 {[%clk 0:02:34]}  Re8 {[%clk 0:02:34]} 12. Nh4 {[%clk 0:02:28]}  Nd4 {[%clk 0:02:32]} 13. Qd1 {[%clk 0:02:22]}  Bb7 {[%clk 0:02:24]} 14. Nb3 {[%clk 0:02:16]}  dxc4 {[%clk 0:01:48]} 15. Bxb7 {[%clk 0:02:07]}  cxb3 {[%clk 0:01:45]} 16. axb3 {[%clk 0:01:36]}  a5 {[%clk 0:01:39]} 17. Bxa8 {[%clk 0:01:34]}  Qxa8 {[%clk 0:01:38]} 18. Be3 {[%clk 0:01:34]}  Nef5 {[%clk 0:01:34]} 19. Nxf5 {[%clk 0:01:30]}  Nf3+ {[%clk 0:01:32]} 20. Qxf3 {[%clk 0:01:20]}  Qxf3 {[%clk 0:01:30]} 21. Nxd6 {[%clk 0:01:20]}  Rxe3 {[%clk 0:01:20]} 22. fxe3 {[%clk 0:01:20]}  Qxe3+ {[%clk 0:01:20]} 23. Rf2 {[%clk 0:01:16]}  Qxd3 {[%clk 0:01:20]} 24. Nf5 {[%clk 0:00:59]}  g6 {[%clk 0:01:18]} 25. Nh6+ {[%clk 0:00:49]}  Kg7 {[%clk 0:01:17]} 26. Ng4 {[%clk 0:00:48]}  f5 {[%clk 0:01:13]} 27. Ne5 {[%clk 0:00:48]}  Qxb3 {[%clk 0:01:12]} 28. Re1 {[%clk 0:00:44]}  a4 {[%clk 0:01:08]} 29. Nd7 {[%clk 0:00:44]}  a3 {[%clk 0:00:39]} 30. bxa3 {[%clk 0:00:41]}  c4 {[%clk 0:00:39]} 31. Re7+ {[%clk 0:00:37]}  Kh6 {[%clk 0:00:39]} 32. Nf6 {[%clk 0:00:29]}  Qxa3 {[%clk 0:00:24]} 33. Ng8+ {[%clk 0:00:17]}  Kh5 {[%clk 0:00:24]} 34. Rf4 {[%clk 0:00:16]}  h6 {[%clk 0:00:13]} 35. Nf6+ {[%clk 0:00:09]}  Kg5 {[%clk 0:00:13]} 36. Nh7+ {[%clk 0:00:09]}  Kh5 {[%clk 0:00:13]} 37. Rh4# {[%clk 0:00:09]} 1-0


[Site "https://www.chess.com"]

[Event "Titled Tuesday Blitz July 6 2021"]
[White "Kubatko, Ivan"]
[Black "Pesotskiy, Mikhail"]
[WhiteFideId "24111473"]
[BlackFideId "34164453"]
[WhiteElo "2285"]
[BlackElo "2052"]
[Result "1-0"]
[Round "08"]
[TimeControl "180+1"]
[Date "2021.07.06"]
[WhiteClock "0:00:37"]
[BlackClock "0:01:28"]

1. e4 {[%clk 0:03:00]}  e6 {[%clk 0:02:52]} 2. d4 {[%clk 0:02:59]}  d5 {[%clk 0:02:51]} 3. exd5 {[%clk 0:03:00]}  exd5 {[%clk 0:02:51]} 4. Nf3 {[%clk 0:03:00]}  Bd6 {[%clk 0:02:48]} 5. c4 {[%clk 0:03:00]}  Nf6 {[%clk 0:02:45]} 6. Nc3 {[%clk 0:03:00]}  O-O {[%clk 0:02:43]} 7. Bd3 {[%clk 0:02:52]}  dxc4 {[%clk 0:02:42]} 8. Bxc4 {[%clk 0:02:52]}  Nbd7 {[%clk 0:02:43]} 9. O-O {[%clk 0:02:51]}  Nb6 {[%clk 0:02:44]} 10. Bb3 {[%clk 0:02:51]}  Re8 {[%clk 0:02:43]} 11. Bg5 {[%clk 0:02:46]}  Be6 {[%clk 0:02:43]} 12. Bc2 {[%clk 0:02:36]}  Bg4 {[%clk 0:02:43]} 13. h3 {[%clk 0:02:30]}  Bh5 {[%clk 0:02:42]} 14. Ne4 {[%clk 0:02:20]}  Be7 {[%clk 0:02:42]} 15. Ng3 {[%clk 0:02:19]}  Bg6 {[%clk 0:02:40]} 16. Bb3 {[%clk 0:02:16]}  h6 {[%clk 0:02:35]} 17. Ne5 {[%clk 0:02:00]}  hxg5 {[%clk 0:02:30]} 18. Nxg6 {[%clk 0:01:59]}  Nfd5 {[%clk 0:02:31]} 19. Nxe7+ {[%clk 0:01:33]}  Qxe7 {[%clk 0:02:31]} 20. Nf5 {[%clk 0:01:15]}  Qf6 {[%clk 0:02:29]} 21. Qg4 {[%clk 0:01:12]}  Nf4 {[%clk 0:02:18]} 22. h4 {[%clk 0:00:56]}  Ne2+ {[%clk 0:02:01]} 23. Kh1 {[%clk 0:00:54]}  gxh4 {[%clk 0:02:02]} 24. Rfe1 {[%clk 0:00:52]}  Nxd4 {[%clk 0:02:00]} 25. Nxd4 {[%clk 0:00:49]}  Rxe1+ {[%clk 0:01:45]} 26. Rxe1 {[%clk 0:00:48]}  Qxf2 {[%clk 0:01:46]} 27. Re7 {[%clk 0:00:40]}  Rf8 {[%clk 0:01:34]} 28. Nf5 {[%clk 0:00:38]}  g6 {[%clk 0:01:28]} 29. Qxg6+ {[%clk 0:00:37]} 1-0


[Site "https://www.chess.com"]

[Event "Titled Tuesday Blitz July 6 2021"]
[White "Lagunow, Raphael"]
[Black "Redzisz, Michal"]
[WhiteFideId "24652644"]
[BlackFideId "21816107"]
[WhiteElo "2400"]
[BlackElo "1866"]
[Result "1-0"]
[Round "08"]
[TimeControl "180+1"]
[Date "2021.07.06"]
[WhiteClock "0:01:01"]
[BlackClock "0:01:28"]

1. e4 {[%clk 0:03:00]}  c5 {[%clk 0:02:59]} 2. Nf3 {[%clk 0:02:59]}  e6 {[%clk 0:02:59]} 3. d4 {[%clk 0:02:58]}  cxd4 {[%clk 0:03:00]} 4. Nxd4 {[%clk 0:02:59]}  Nc6 {[%clk 0:03:01]} 5. Nc3 {[%clk 0:02:58]}  Qc7 {[%clk 0:03:01]} 6. Qd3 {[%clk 0:02:58]}  Nxd4 {[%clk 0:02:40]} 7. Qxd4 {[%clk 0:02:59]}  b6 {[%clk 0:02:40]} 8. Nb5 {[%clk 0:02:21]}  Qc6 {[%clk 0:02:31]} 9. Bf4 {[%clk 0:02:14]}  Kd8 {[%clk 0:02:05]} 10. Bc7+ {[%clk 0:01:54]}  Ke8 {[%clk 0:01:57]} 11. Bf4 {[%clk 0:01:40]}  Kd8 {[%clk 0:01:57]} 12. Nc7 {[%clk 0:01:34]}  Rb8 {[%clk 0:01:57]} 13. Nxe6+ {[%clk 0:01:10]}  fxe6 {[%clk 0:01:57]} 14. Bxb8 {[%clk 0:01:10]}  Qxc2 {[%clk 0:01:28]} 15. Bd3 {[%clk 0:01:06]}  Bb4+ {[%clk 0:01:28]} 16. Qxb4 {[%clk 0:01:02]}  Qxd3 {[%clk 0:01:28]} 17. Qf8# {[%clk 0:01:01]} 1-0


[Site "https://www.chess.com"]